fUST/lending_fUST_20241030
["ID","MTS","AMOUNT","RATE_DAILY","PERIOD"]
[341009620,1730235088300,-3000.0,0.0002711,2]
[341009621,1730235088311,-1721.0,0.00027112,2]
[341009622,1730235088321,-3000.0,0.0002712,2]
[341009623,1730235088331,-458.61364873,0.00027123,3]
[341009624,1730235088341,-998.22,0.00027123,3]
[341009625,1730235088351,-506.86,0.00027123,3]
[341009626,1730235088361,-555.31,0.00027123,3]
[341009627,1730235088370,-500.0,0.00027123,3]
[341009628,1730235088379,-568.9,0.00027123,3]
[341009629,1730235088388,-500.0,0.00027123,3]
[341009630,1730235088398,-829.81,0.00027123,3]
[341009631,1730235088409,-3490.75,0.00027123,3]
[341009632,1730235088419,-17023.64,0.00027123,3]
[341009633,1730235088429,-2051.13,0.00027123,3]
[341009634,1730235088438,-500.0,0.00027123,3]
[341009635,1730235088447,-792.33,0.00027123,3]
[341009636,1730235088458,-1227.93,0.00027123,3]
[341009637,1730235088468,-930.7,0.00027123,3]
[341009638,1730235088478,-500.0,0.00027123,3]
[341009639,1730235088488,-2483.19,0.00027123,3]
[341009640,1730235088497,-1290.17,0.00027123,3]
[341009641,1730235088509,-1899.02,0.00027123,3]
[341009642,1730235088520,-807.18,0.00027123,3]
[341009643,1730235088532,-1161.45,0.00027123,3]
[341009644,1730235088542,-597.13,0.00027123,3]
[341009645,1730235088551,-782.98,0.00027123,3]
[341009646,1730235088561,-862.77,0.00027123,3]
[341009647,1730235088571,-500.0,0.00027123,3]
[341009648,1730235088582,-9234.26,0.00027123,3]
[341009649,1730235088592,-359.74952537,0.00027123,3]
[341009650,1730235088603,-510.74,0.00027123,3]
[341009651,1730235088615,-765.74,0.00027123,3]
[341009652,1730235088625,-2829.65,0.00027123,3]
[341009653,1730235088638,-4151.06,0.00027123,3]
[341009654,1730235088648,-3000.0,0.0002713,2]
[341009655,1730235088659,-3000.0,0.0002714,2]
[341009656,1730235088671,-3000.0,0.0002715,2]
[341009657,1730235088682,-3000.0,0.0002716,2]
[341009658,1730235088691,-3000.0,0.0002717,2]
[341009659,1730235088703,-3000.0,0.0002718,2]
[341009660,1730235088712,-3000.0,0.0002719,2]
[341009661,1730235088722,-13447.27,0.000272,14]
[341009662,1730235088732,-3000.0,0.000272,2]
[341009663,1730235088741,-10951.87,0.000272,14]
[341009664,1730235088750,-2280.26,0.000272,14]
[341009665,1730235088759,-2698.64,0.000272,14]
[341009666,1730235088769,-3000.0,0.0002721,2]
[341009667,1730235088779,-3000.0,0.0002722,2]
[341009668,1730235088790,-3000.0,0.0002723,2]
[341009669,1730235088802,-3000.0,0.0002724,2]
[341009670,1730235088812,-3000.0,0.0002725,2]
[341009671,1730235088821,-3000.0,0.0002726,2]
[341009672,1730235088830,-3000.0,0.0002727,2]
[341009673,1730235088841,-3000.0,0.0002728,2]
[341009674,1730235088851,-3000.0,0.0002729,2]
[341009675,1730235088860,-3000.0,0.000273,2]
[341009676,1730235088871,-3000.0,0.0002731,2]
[341009677,1730235088881,-3000.0,0.0002732,2]
[341009678,1730235088892,-3000.0,0.0002733,2]
[341009679,1730235088901,-3000.0,0.0002734,2]
[341009680,1730235088911,-3000.0,0.0002735,2]
[341009681,1730235088921,-3000.0,0.0002736,2]
[341009682,1730235088931,-3000.0,0.0002737,2]
[341009683,1730235088941,-160.0,0.00027378,7]
[341009684,1730235088952,-3000.0,0.0002738,2]
[341009685,1730235088962,-1721.0,0.00027386,2]
[341009686,1730235088971,-230.0,0.00027386,2]
[341009687,1730235088983,-3000.0,0.0002739,2]
[341009688,1730235088995,-489.56190471,0.00027397,2]
[341009689,1730235089004,-1000.0,0.00027397,3]
[341009690,1730235089014,-1000.0,0.00027397,3]
[341009691,1730235089023,-811.72797445,0.00027397,3]
[341009692,1730235089033,-998.22,0.00027397,3]
[341009693,1730235089043,-506.86,0.00027397,3]
[341009694,1730235089054,-555.31,0.00027397,3]
[341009695,1730235089063,-500.0,0.00027397,3]
[341009696,1730235089074,-500.0,0.00027397,7]
[341009697,1730235089086,-1000.0,0.00027397,30]
[341009698,1730235089098,-1149.68684603,0.00027397,30]
[341009699,1730235089108,-568.9,0.00027397,3]
[341009700,1730235089119,-500.0,0.00027397,3]
[341009701,1730235089130,-829.81,0.00027397,3]
[341009702,1730235089140,-500.0,0.00027397,3]
[341009703,1730235089150,-500.0,0.00027397,3]
[341009704,1730235089160,-500.0,0.00027397,3]
[341009705,1730235089169,-500.0,0.00027397,3]
[341009706,1730235089178,-500.0,0.00027397,3]
[341009707,1730235089188,-500.0,0.00027397,3]
[341009708,1730235089199,-500.0,0.00027397,3]
[341009709,1730235089209,-502.90846891,0.00027397,3]
[341009710,1730235089219,-3490.75,0.00027397,3]
[341009711,1730235089230,-17023.64,0.00027397,3]
[341009712,1730235089240,-2051.13,0.00027397,3]
[341009713,1730235089250,-500.0,0.00027397,3]
[341009714,1730235089259,-792.33,0.00027397,3]
[341009715,1730235089269,-1227.93,0.00027397,3]
[341009716,1730235089278,-930.7,0.00027397,3]
[341009717,1730235089287,-310.16666182,0.00027397,3]
[341009718,1730235089300,-2483.19,0.00027397,3]
[341009719,1730235089310,-1290.17,0.00027397,3]
[341009720,1730235089321,-500.0,0.00027397,2]
[341009721,1730235089331,-1899.02,0.00027397,3]
[341009722,1730235089342,-807.18,0.00027397,3]
[341009723,1730235089353,-1161.45,0.00027397,3]
[341009724,1730235089362,-597.13,0.00027397,3]
[341009725,1730235089372,-782.98,0.00027397,3]
[341009726,1730235089382,-862.77,0.00027397,3]
[341009727,1730235089391,-500.0,0.00027397,3]
[341009728,1730235089400,-9234.26,0.00027397,3]
[341009729,1730235089411,-510.74,0.00027397,3]
[341009730,1730235089422,-765.74,0.00027397,3]
[341009731,1730235089433,-2829.65,0.00027397,3]
[341009732,1730235089443,-4151.06,0.00027397,3]
[341009733,1730235089454,-300.0,0.00027397,30]
[341009734,1730235089463,-3000.0,0.000274,2]
[341009735,1730235089473,-3000.0,0.0002741,2]
[341009736,1730235089482,-3000.0,0.0002742,2]
[341009737,1730235089494,-3000.0,0.0002743,2]
[341009738,1730235089506,-3000.0,0.0002744,2]
[341009739,1730235089518,-3000.0,0.0002745,2]
[341009740,1730235089528,-1000.0,0.00027452,5]
[341009741,1730235089537,-1000.0,0.00027452,5]
[341009742,1730235089548,-345.19462981,0.00027452,5]
[341009743,1730235089559,-277.18196985,0.00027452,5]
[341009744,1730235089570,-1000.0,0.00027452,5]
[341009745,1730235089582,-1000.0,0.00027452,5]
[341009746,1730235089593,-186.20020894,0.00027452,2]
[341009747,1730235089604,-1000.0,0.00027452,5]
[341009748,1730235089614,-1000.0,0.00027452,2]
[341009749,1730235089626,-501.51344911,0.00027452,5]
[341009750,1730235089635,-830.5288269,0.00027452,5]
[341009751,1730235089645,-1007.91776933,0.00027452,5]
[341009752,1730235089655,-1000.0,0.00027452,5]
[341009753,1730235089666,-1000.0,0.00027452,5]
[341009754,1730235089677,-1024.39674088,0.00027452,5]
[341009755,1730235089687,-3000.0,0.0002746,2]
[341009756,1730235089699,-3000.0,0.0002747,2]
[341009757,1730235089711,-1500.0,0.00027475,5]
[341009758,1730235089721,-3000.0,0.0002748,2]
[341009759,1730235089731,-3000.0,0.0002749,2]
[341009760,1730235089740,-150.78821196,0.000275,2]
[341009761,1730235089749,-500.0,0.00027536,2]
[341009762,1730235089759,-552.36109121,0.00027585,2]
[341009763,1730235089768,-230.0,0.00027616,2]
[341009764,1730235089780,-823.0,0.00027631,2]
[341009765,1730235089790,-1000.0,0.00027652,5]
[341009766,1730235089802,-1000.0,0.00027652,5]
[341009767,1730235089813,-1000.0,0.00027652,5]
[341009768,1730235089825,-1000.0,0.00027652,5]
[341009769,1730235089836,-1000.0,0.00027652,5]
[341009770,1730235089847,-1000.0,0.00027652,5]
[341009771,1730235089857,-500.77412116,0.00027652,5]
[341009772,1730235089866,-160.0,0.00027657,10]
[341009773,1730235089877,-160.0,0.00027657,10]
[341009774,1730235089986,-163.52906214,0.00027657,10]
[341009775,1730235089998,-163.07012514,0.00027657,10]
[341009776,1730235090008,-476.81,0.00027657,2]
[341009777,1730235090018,-476.81,0.00027657,2]
[341009778,1730235090028,-476.81,0.00027657,2]
[341009779,1730235090038,-476.81,0.00027657,2]
[341009780,1730235090048,-476.81,0.00027657,2]
[341009781,1730235090059,-476.81,0.00027657,2]
[341009782,1730235090068,-476.81,0.00027657,2]
[341009783,1730235090078,-476.81,0.00027657,2]
[341009784,1730235090088,-476.81,0.00027657,2]
[341009785,1730235090098,-476.81,0.00027657,2]
[341009786,1730235090108,-269027.31535632,0.00027658,2]
[341009787,1730235090118,-1721.0,0.0002766,2]
[341009788,1730235090128,-998.22,0.00027671,3]
[341009789,1730235090137,-506.86,0.00027671,3]
[341009790,1730235090147,-555.31,0.00027671,3]
[341009791,1730235090158,-524.62,0.00027671,3]
[341009792,1730235090167,-568.9,0.00027671,3]
[341009793,1730235090176,-530.28582249,0.00027671,3]
[341009794,1730235090187,-829.81,0.00027671,3]
[341009795,1730235090196,-3490.75,0.00027671,3]
[341009796,1730235090206,-17023.64,0.00027671,3]
[341009797,1730235090216,-2051.13,0.00027671,3]
[341009798,1730235090226,-534.56,0.00027671,3]
[341009799,1730235090236,-792.33,0.00027671,3]
[341009800,1730235090246,-1227.93,0.00027671,3]
[341009801,1730235090255,-930.7,0.00027671,3]
[341009802,1730235090265,-2483.19,0.00027671,3]
[341009803,1730235090275,-1290.17,0.00027671,3]
[341009804,1730235090284,-1899.02,0.00027671,3]
[341009805,1730235090294,-807.18,0.00027671,3]
[341009806,1730235090304,-1161.45,0.00027671,3]
[341009807,1730235090314,-597.13,0.00027671,3]
[341009808,1730235090324,-782.98,0.00027671,3]
[341009809,1730235090335,-862.77,0.00027671,3]
[341009810,1730235090345,-500.0,0.00027671,3]
[341009811,1730235090355,-9234.26,0.00027671,3]
[341009812,1730235090365,-510.74,0.00027671,3]
[341009813,1730235090374,-2829.65,0.00027671,3]
[341009814,1730235090384,-765.74,0.00027671,3]
[341009815,1730235090394,-4151.06,0.00027671,3]
[341009816,1730235090403,-6261.61583614,0.00027684,2]
[341009817,1730235090413,-160.0,0.00027808,8]
[341009818,1730235090422,-1721.0,0.00027934,2]
[341009819,1730235090432,-998.22,0.00027945,3]
[341009820,1730235090443,-506.86,0.00027945,3]
[341009821,1730235090453,-555.31,0.00027945,3]
[341009822,1730235090463,-568.9,0.00027945,3]
[341009823,1730235090473,-829.81,0.00027945,3]
[341009824,1730235090482,-3490.75,0.00027945,3]
[341009825,1730235090492,-17023.64,0.00027945,3]
[341009826,1730235090501,-2051.13,0.00027945,3]
[341009827,1730235090511,-792.33,0.00027945,3]
[341009828,1730235090521,-1227.93,0.00027945,3]
[341009829,1730235090532,-930.7,0.00027945,3]
[341009830,1730235090542,-2483.19,0.00027945,3]
[341009831,1730235090553,-1290.17,0.00027945,3]
[341009832,1730235090563,-1899.02,0.00027945,3]
[341009833,1730235090573,-807.18,0.00027945,3]
[341009834,1730235090583,-1161.45,0.00027945,3]
[341009835,1730235090592,-597.13,0.00027945,3]
[341009836,1730235090603,-782.98,0.00027945,3]
[341009837,1730235090614,-862.77,0.00027945,3]
[341009838,1730235090624,-171.77502469,0.00027945,3]
[341009839,1730235090634,-9234.26,0.00027945,3]
[341009840,1730235090646,-510.74,0.00027945,3]
[341009841,1730235090657,-2829.65,0.00027945,3]
[341009842,1730235090667,-765.74,0.00027945,3]
[341009843,1730235090678,-1000.0,0.00027952,5]
[341009844,1730235090688,-31858.40234454,0.0002799,2]
[341009845,1730235090698,-1162.42149602,0.0002799,7]
[341009846,1730235090708,-6236.01168135,0.00028,2]
[341009847,1730235090717,-300.0,0.00028,2]
[341009848,1730235090727,-298.43926827,0.00028,15]
[341009849,1730235090737,-19167.92,0.00028,15]
[341009850,1730235090746,-1500.0,0.00028047,5]
[341009851,1730235090756,-1721.0,0.00028208,2]
[341009852,1730235090766,-998.42818412,0.00028219,3]
[341009853,1730235090775,-506.93,0.00028219,3]
[341009854,1730235090785,-555.41899485,0.00028219,3]
[341009855,1730235090797,-500.0,0.00028219,7]
[341009856,1730235090806,-568.94881111,0.00028219,3]
[341009857,1730235090815,-829.81,0.00028219,3]
[341009858,1730235090826,-3490.84873616,0.00028219,3]
[341009859,1730235090838,-17023.84361778,0.00028219,3]
[341009860,1730235090849,-2051.14330366,0.00028219,3]
[341009861,1730235090860,-792.49989392,0.00028219,3]
[341009862,1730235090870,-1228.11207131,0.00028219,3]
[341009863,1730235090880,-930.82017035,0.00028219,3]
[341009864,1730235090891,-2483.40855534,0.00028219,3]
[341009865,1730235090901,-1290.31,0.00028219,3]
[341009866,1730235090911,-1899.18382417,0.00028219,3]
[341009867,1730235090920,-807.31,0.00028219,3]
[341009868,1730235090932,-1161.47763987,0.00028219,3]
[341009869,1730235090942,-597.31778798,0.00028219,3]
[341009870,1730235090951,-783.18650175,0.00028219,3]
[341009871,1730235090963,-862.89870402,0.00028219,3]
[341009872,1730235090973,-9234.42140142,0.00028219,3]
[341009873,1730235090982,-510.92,0.00028219,3]
[341009874,1730235090993,-2829.85,0.00028219,3]
[341009875,1730235091002,-765.77,0.00028219,3]
[341009876,1730235091011,-160.0,0.00028237,9]
[341009877,1730235091020,-378.79,0.0002824,2]
[341009878,1730235091030,-1721.0,0.00028482,2]
[341009879,1730235091041,-10951.87,0.000285,30]
[341009880,1730235091053,-1319.42579725,0.000286,120]
[341009881,1730235091065,-13447.27,0.000286,30]
[341009882,1730235091075,-2280.26,0.000286,14]
[341009883,1730235091087,-2698.64,0.000286,14]
[341009884,1730235091097,-823.0,0.00028617,2]
[341009885,1730235091106,-160.0,0.00028666,10]
[341009886,1730235091115,-1019.15341707,0.000287,2]
[341009887,1730235091125,-1721.0,0.00028756,2]
[341009888,1730235091134,-210.9014947,0.00028793,2]
[341009889,1730235091145,-210.9014947,0.00028793,2]
[341009890,1730235091154,-210.9014947,0.00028803,2]
[341009891,1730235091163,-469.36805456,0.00028964,2]
[341009892,1730235091172,-230.0,0.00028997,2]
[341009893,1730235091182,-163.0,0.00028997,2]
[341009894,1730235091191,-160.0,0.00028999,10]
[341009895,1730235091200,-160.0,0.00028999,10]
[341009896,1730235091209,-857.97799604,0.00029,2]
[341009897,1730235091218,-300.0,0.00029,2]
[341009898,1730235091227,-1000.0,0.00029,120]
[341009899,1730235091236,-127037.23190963,0.00029,30]
[341009900,1730235091246,-1721.0,0.0002903,2]
[341009901,1730235091255,-500.0,0.00029041,7]
[341009902,1730235091265,-160.0,0.00029095,11]
[341009903,1730235091274,-1721.0,0.00029304,2]
[341009904,1730235091283,-528.0,0.00029452,2]
[341009905,1730235091291,-2395.0,0.00029452,2]
[341009906,1730235091301,-1145.0,0.00029452,2]
[341009907,1730235091310,-500.0,0.00029495,30]
[341009908,1730235091320,-500.0,0.00029495,30]
[341009909,1730235091329,-500.0,0.00029495,30]
[341009910,1730235091338,-500.0,0.00029495,30]
[341009911,1730235091348,-500.0,0.00029495,30]
[341009912,1730235091357,-500.0,0.00029495,30]
[341009913,1730235091367,-231.32278838,0.00029495,30]
[341009914,1730235091377,-1341.79067242,0.000295,120]
[341009915,1730235091386,-160.0,0.00029524,12]
[341009916,1730235091395,-1721.0,0.00029578,2]
[341009917,1730235091405,-210.9014947,0.00029615,2]
[341009918,1730235091414,-210.9014947,0.00029615,2]
[341009919,1730235091423,-210.9014947,0.00029615,2]
[341009920,1730235091433,-210.9014947,0.00029615,2]
[341009921,1730235091442,-210.9014947,0.00029615,2]
[341009922,1730235091451,-210.9014947,0.00029615,2]
[341009923,1730235091461,-421.8029894,0.00029615,2]
[341009924,1730235091470,-210.9014947,0.00029615,2]
[341009925,1730235091480,-210.9014947,0.00029624,2]
[341009926,1730235091489,-6261.61583614,0.00029642,2]
[341009927,1730235091498,-10951.87,0.000297,30]
[341009928,1730235091508,-1721.0,0.00029851,2]
[341009929,1730235091517,-539.50291888,0.00029863,7]
[341009930,1730235091526,-13447.27,0.000299,30]
[341009931,1730235091536,-2280.26,0.000299,14]
[341009932,1730235091548,-160.0,0.00029953,13]
[341009933,1730235091561,-160.0,0.00029999,10]
[341009934,1730235091570,-164.20037188,0.00029999,10]
[341009935,1730235091579,-1500.0,0.0003,2]
[341009936,1730235091589,-20952.586748,0.0003,4]
[341009937,1730235091599,-29329.15792036,0.0003,15]
[341009938,1730235091608,-7925.38016648,0.0003,10]
[341009939,1730235091617,-11063.56594205,0.0003,2]
[341009940,1730235091626,-14519.98883825,0.0003,2]
[341009941,1730235091636,-300.0,0.0003,120]
[341009942,1730235091645,-2467.5594584,0.0003,2]
[341009943,1730235091655,-2712.35,0.0003,120]
[341009944,1730235091664,-300.0,0.0003,2]
[341009945,1730235091673,-31161.74,0.0003,120]
[341009946,1730235091683,-13422.75176221,0.0003,3]
[341009947,1730235091692,-236599.104614,0.0003,2]
[341009948,1730235091702,-502529.924166,0.0003,2]
[341009949,1730235091712,-300.0,0.0003,10]
[341009950,1730235091721,-151.0,0.0003,120]
[341009951,1730235091730,-390.56550176,0.0003,10]
[341009952,1730235091740,-5000.0,0.0003,7]
[341009953,1730235091749,-878.52909027,0.0003,15]
[341009954,1730235091758,-2842.24711076,0.0003,120]
[341009955,1730235091858,-1018.74344161,0.0003,7]
[341009956,1730235091869,-250.45875,0.0003,2]
[341009957,1730235091878,-2698.64,0.0003,14]
[341009958,1730235091887,-264.0,0.0003,2]
[341009959,1730235091897,-475.401858,0.0003,7]
[341009960,1730235091906,-1152.0,0.00030041,2]
[341009961,1730235091915,-261.92244,0.000301,120]
[341009962,1730235091924,-200.0,0.000301,120]
[341009963,1730235091934,-880.45781,0.000301,120]
[341009964,1730235091944,-200.0,0.000301,120]
[341009965,1730235091953,-1721.0,0.00030125,2]
[341009966,1730235091962,-500.0,0.00030136,2]
[341009967,1730235091971,-160.0,0.00030382,14]
[341009968,1730235091981,-231.23364372,0.00030382,5]
[341009969,1730235091990,-1721.0,0.00030399,2]
[341009970,1730235092000,-153.0,0.00030446,2]
[341009971,1730235092009,-308.5750969,0.00030508,2]
[341009972,1730235092018,-153.0,0.00030508,2]
[341009973,1730235092027,-187.25073981,0.0003065,2]
[341009974,1730235092036,-1721.0,0.00030673,2]
[341009975,1730235092046,-2000.0,0.00030718,5]
[341009976,1730235092055,-23032.5952,0.00030789,30]
[341009977,1730235092064,-500.0,0.00030899,30]
[341009978,1730235092074,-500.0,0.00030899,30]
[341009979,1730235092083,-500.0,0.00030899,30]
[341009980,1730235092093,-516.53145302,0.00030899,30]
[341009981,1730235092102,-151.0,0.00030904,120]
[341009982,1730235092111,-1724.94135863,0.00030947,2]
[341009983,1730235092121,-300.0,0.00031,4]
[341009984,1730235092130,-1000.0,0.00031,120]
[341009985,1730235092139,-1001.10022443,0.00031,2]
[341009986,1730235092149,-500.0,0.00031,120]
[341009987,1730235092159,-500.0,0.00031068,7]
[341009988,1730235092168,-10951.87,0.000311,30]
[341009989,1730235092177,-2280.26,0.000312,14]
[341009990,1730235092186,-2000.0,0.00031291,5]
[341009991,1730235092196,-13447.27,0.000313,30]
[341009992,1730235092205,-2698.64,0.000313,14]
[341009993,1730235092216,-1152.0,0.00031478,2]
[341009994,1730235092225,-454.64092914,0.00031516,4]
[341009995,1730235092234,-454.64092914,0.0003156,4]
[341009996,1730235092244,-6261.61583614,0.000316,2]
[341009997,1730235092253,-1000.0,0.00031651,2]
[341009998,1730235092263,-250.45875,0.00031764,2]
[341009999,1730235092273,-321.37032,0.000318,120]
[341010000,1730235092282,-880.45781,0.000318,120]
[341010001,1730235092292,-320.2502,0.000318,120]
[341010002,1730235092301,-151.0,0.00031808,120]
[341010003,1730235092311,-454.64092914,0.00031832,4]
[341010004,1730235092320,-158.20054768,0.00031875,4]
[341010005,1730235092330,-300.0,0.00032,120]
[341010006,1730235092339,-300.0,0.00032,5]
[341010007,1730235092348,-500.0,0.00032,2]
[341010008,1730235092357,-296.67,0.00032,2]
[341010009,1730235092367,-3000.0,0.00032,2]
[341010010,1730235092376,-8998.0,0.00032,60]
[341010011,1730235092385,-501.5975,0.00032,60]
[341010012,1730235092394,-400.36065572,0.00032,120]
[341010013,1730235092404,-3971.61556421,0.00032,5]
[341010014,1730235092413,-151.0,0.0003211,2]
[341010015,1730235092423,-29361.4872187,0.0003212,10]
[341010016,1730235092432,-454.64092914,0.00032147,4]
[341010017,1730235092441,-2395.0,0.00032452,2]
[341010018,1730235092452,-1113.0,0.00032452,2]
[341010019,1730235092461,-454.64092914,0.00032462,4]
[341010020,1730235092470,-387.0,0.000325,80]
[341010021,1730235092480,-10951.87,0.000325,30]
[341010022,1730235092489,-13447.27,0.000326,30]
[341010023,1730235092499,-2280.26,0.000326,14]
[341010024,1730235092508,-378.736,0.0003265,27]
[341010025,1730235092518,-1613.0,0.00032661,2]
[341010026,1730235092527,-4544.45357924,0.000327,5]
[341010027,1730235092537,-4544.45357922,0.000327,5]
[341010028,1730235092547,-4544.45357922,0.000327,5]
[341010029,1730235092556,-4544.45357922,0.000327,5]
[341010030,1730235092566,-500.0,0.00032712,7]
[341010031,1730235092575,-151.0,0.00032712,120]
[341010032,1730235092585,-378.787,0.0003276,2]
[341010033,1730235092595,-454.64092914,0.00032777,4]
[341010034,1730235092604,-2698.64,0.000328,14]
[341010035,1730235092614,-1000.0,0.00032846,2]
[341010036,1730235092623,-150.5,0.0003285,120]
[341010037,1730235092632,-150.5,0.0003286,120]
[341010038,1730235092641,-150.5,0.0003287,120]
[341010039,1730235092651,-177.21,0.0003287,120]
[341010040,1730235092660,-312.0,0.0003287,120]
[341010041,1730235092670,-476.34369236,0.00032876,2]
[341010042,1730235092679,-439.25407575,0.00032876,2]
[341010043,1730235092689,-213.79801756,0.00032876,2]
[341010044,1730235092701,-449.19889627,0.00032876,2]
[341010045,1730235092711,-284.03867177,0.00032876,2]
[341010046,1730235092722,-190.25732938,0.00032876,2]
[341010047,1730235092731,-357.21248392,0.00032876,2]
[341010048,1730235092742,-500.0,0.00032876,2]
[341010049,1730235092751,-500.0,0.00032876,2]
[341010050,1730235092761,-592.25343459,0.00032876,2]
[341010051,1730235092772,-642.311111,0.00032876,2]
[341010052,1730235092783,-161.84749807,0.00032876,2]
[341010053,1730235092796,-359.6970225,0.00032876,2]
[341010054,1730235092805,-468.10861483,0.00032876,2]
[341010055,1730235092814,-153.09106454,0.00032876,2]
[341010056,1730235092823,-1500.0,0.00032876,2]
[341010057,1730235092832,-500.0,0.00032876,2]
[341010058,1730235092842,-1000.0,0.00032876,2]
[341010059,1730235092852,-1000.0,0.00032876,2]
[341010060,1730235092862,-1000.0,0.00032876,2]
[341010061,1730235092875,-1000.0,0.00032876,2]
[341010062,1730235092886,-1000.0,0.00032876,2]
[341010063,1730235092897,-1000.0,0.00032876,2]
[341010064,1730235092908,-166.91273776,0.00032876,2]
[341010065,1730235092920,-188.0,0.00032876,3]
[341010066,1730235092931,-188.0,0.00032876,3]
[341010067,1730235092941,-188.0,0.00032876,3]
[341010068,1730235092951,-188.0,0.00032876,3]
[341010069,1730235092962,-188.0,0.00032876,3]
[341010070,1730235092973,-188.0,0.00032876,3]
[341010071,1730235092983,-188.0,0.00032876,3]
[341010072,1730235092994,-188.0,0.00032876,3]
[341010073,1730235093004,-196.87962622,0.00032876,3]
[341010074,1730235093013,-500.0,0.00032876,120]
[341010075,1730235093022,-171.5246637,0.00032876,120]
[341010076,1730235093031,-500.0,0.00032876,2]
[341010077,1730235093041,-400.0,0.00032876,2]
[341010078,1730235093051,-500.0,0.00032876,2]
[341010079,1730235093061,-623.02249725,0.00032876,2]
[341010080,1730235093073,-500.0,0.00032876,2]
[341010081,1730235093082,-500.0,0.00032876,2]
[341010082,1730235093091,-500.0,0.00032876,2]
[341010083,1730235093101,-500.0,0.00032876,2]
[341010084,1730235093110,-500.0,0.00032876,2]
[341010085,1730235093119,-500.0,0.00032876,2]
[341010086,1730235093129,-2234.781439,0.00032877,120]
[341010087,1730235093140,-329.35034951,0.00032877,2]
[341010088,1730235093149,-312.0,0.0003288,120]
[341010089,1730235093157,-312.0,0.0003289,120]
[341010090,1730235093167,-155.0,0.0003297,120]
[341010091,1730235093176,-155.0,0.0003298,120]
[341010092,1730235093186,-155.0,0.0003299,120]
[341010093,1730235093195,-35087.68404647,0.00033,2]
[341010094,1730235093204,-301.51275443,0.00033,30]
[341010095,1730235093213,-1000.0,0.00033,120]
[341010096,1730235093223,-8006.0,0.00033,60]
[341010097,1730235093232,-451.58487824,0.00033,7]
[341010098,1730235093242,-500.0,0.00033,10]
[341010099,1730235093251,-503.32,0.00033,10]
[341010100,1730235093261,-3399.49569989,0.00033,30]
[341010101,1730235093271,-500.0,0.00033,120]
[341010102,1730235093280,-264.0,0.00033,2]
[341010103,1730235093290,-264.0,0.00033,2]
[341010104,1730235093301,-606.18790552,0.00033092,6]
[341010105,1730235093310,-65507.6143718,0.000332,6]
[341010106,1730235093319,-150.0,0.00033252,120]
[341010107,1730235093328,-200.0,0.00033304,30]
[341010108,1730235093338,-2173.0966622,0.00033345,2]
[341010109,1730235093347,-378.769,0.0003335,28]
[341010110,1730235093357,-150.0,0.00033373,120]
[341010111,1730235093366,-675.57853436,0.00033407,6]
[341010112,1730235093376,-150.0,0.00033447,120]
[341010113,1730235093385,-880.45781,0.000335,120]
[341010114,1730235093396,-6261.61583614,0.00033558,2]
[341010115,1730235093406,-4351.02064281,0.0003358,3]
[341010116,1730235093415,-151.0,0.00033616,120]
[341010117,1730235093425,-150.55668,0.000337,2]
[341010118,1730235093435,-1000.0,0.00033785,2]
[341010119,1730235093445,-13447.27,0.000338,30]